Workbook

Sheet SkillConfig
A1: ID[cknu] | B1: name[ct] | C1: type[cn] | D1: buffs[cna] | E1: isHurt[cn] | F1: dirType[cn] | G1: hurtRate[cn] | H1: effectType[cna] | I1: effectParm[cna] | J1: castDuration[cn] | K1: duration[cn] | L1: loop[cn] | M1: castFrame[cn] | N1: hurtFrame[cn] | O1: attackRangeX[cn] | P1: attackRangeY[cn] | Q1: dizzyTime[cn] | R1: minRole[cn] | S1: maxRole[cn] | T1: monitorRadius[cn] | U1: createRole[cna] | V1: createRolePos[cna] | W1: createMax[cn] | X1: url[ct] | Y1: hitID[cn] | Z1: offsetPos[cna]
A2: id | B2: 名字 | C2: 类型 | D2: buffID数组 | E2: 友军敌军 | F2: 技能对象 | G2: 技能伤害倍率‱ | H2: 特殊效果类型 | I2: 特殊效果参数 | J2: 技能吟唱时间 | K2: 技能持续时间 | L2: 特效循环 | M2: 技能施放帧 | N2: 技能加血扣血帧 | O2: 范围X值 | P2: 范围Y值 | Q2: 眩晕时间 | R2: 最小人数 | S2: 最大人数 | T2: 技能探测区域半径 | U2: 召唤单位 | V2: 召唤单位出生位置 | W2: 召唤单位最大数量 | X2: 技能特效 | Y2: 角色受击特效表ID | Z2: 特效偏移量
A3: 101 | B3: 枪兵加防BUFF | C3: 1 | D3: 2001 | E3: 0 | F3: 1 | G3: 0 | H3: 0 | I3: 0^0|0^0 | J3: 0 | K3: 0 | L3: 0 | M3: 0.5 | N3: 0 | O3: 0 | P3: 0 | Q3: 0 | R3: 1 | S3: 0 | T3: 200 | U3: 0 | V3: 0 | W3: 0 | X3: 0 | Y3: 0 | Z3: 2^0^0 | AD3: =G3*100 -> 0
A4: 201 | B4: 火枪加攻速BUFF | C4: 1 | D4: 3001 | E4: 0 | F4: 1 | G4: 0 | H4: 0 | I4: 0 | J4: 0 | K4: 0 | L4: 0 | M4: 0.5 | N4: 0 | O4: 0 | P4: 0 | Q4: 0 | R4: 1 | S4: 0 | T4: 10 | U4: 0 | V4: 0 | W4: 0 | X4: 0 | Y4: 0 | Z4: 2^0^0 | AD4: 0
A5: 202 | B5: 火枪N弹加伤BUFF | C5: 1 | D5: 4001 | E5: 0 | F5: 1 | G5: 0 | H5: 0 | I5: 0 | J5: 0 | K5: 0 | L5: 0 | M5: 0.5 | N5: 0 | O5: 0 | P5: 0 | Q5: 0 | R5: 1 | S5: 0 | T5: 10 | U5: 0 | V5: 0 | W5: 0 | X5: 0 | Y5: 0 | Z5: 2^0^0 | AD5: 0
A6: 301 | B6: 小丑背刺 | C6: 3 | D6: 0 | E6: 1 | F6: 2 | G6: 0 | H6: 0 | I6: 0 | J6: 0 | K6: 0 | L6: 0 | M6: 0.5 | N6: 0 | O6: 0 | P6: 0 | Q6: 0 | R6: 1 | S6: 0 | T6: 350 | U6: 0 | V6: 0 | W6: 0 | X6: 0 | Y6: 0 | Z6: 2^0^0 | AD6: 0
A7: 302 | B7: 小丑背刺加暴击率BUFF | C7: 1 | D7: 7001 | E7: 1 | F7: 1 | G7: 0 | H7: 5 | I7: 301 | J7: 0 | K7: 5 | L7: 0 | M7: 0.5 | N7: 0 | O7: 0 | P7: 0 | Q7: 0 | R7: 1 | S7: 0 | T7: 10 | U7: 0 | V7: 0 | W7: 0 | X7: 0 | Y7: 0 | Z7: 2^0^0 | AD7: 0
A8: 303 | B8: 小丑背刺加伤BUFF | C8: 1 | D8: 5003 | E8: 1 | F8: 1 | G8: 0 | H8: 5 | I8: 301 | J8: 0 | K8: 0 | L8: 0 | M8: 0.5 | N8: 0 | O8: 0 | P8: 0 | Q8: 0 | R8: 1 | S8: 0 | T8: 10 | U8: 0 | V8: 0 | W8: 0 | X8: 0 | Y8: 0 | Z8: 2^0^0 | AD8: 0
A9: 401 | B9: 蝙蝠侠宇智波攻击吸血BUFF | C9: 1 | D9: 13001 | E9: 0 | F9: 1 | G9: 0 | H9: 0 | I9: 0 | J9: 0 | K9: 0 | L9: 0 | M9: 0.5 | N9: 0 | O9: 0 | P9: 0 | Q9: 0 | R9: 1 | S9: 0 | T9: 10 | U9: 0 | V9: 0 | W9: 0 | X9: 0 | Y9: 0 | Z9: 2^0^0 | AD9: 0
A10: 402 | B10: 宇智波杀敌加攻BUFF | C10: 1 | D10: 1005 | E10: 0 | F10: 1 | G10: 0 | H10: 0 | I10: 0 | J10: 0 | K10: 0 | L10: 0 | M10: 0.5 | N10: 0 | O10: 0 | P10: 0 | Q10: 0 | R10: 1 | S10: 0 | T10: 10 | U10: 0 | V10: 0 | W10: 0 | X10: 0 | Y10: 0 | Z10: 2^0^0 | AD10: 0
A11: 501 | B11: 阿拉丁召唤骷髅 | C11: 4 | D11: 0 | E11: 1 | F11: 1 | G11: 0 | H11: 0 | I11: 0 | J11: 0 | K11: 0 | L11: 0 | M11: 0.5 | N11: 0 | O11: 0 | P11: 0 | Q11: 0 | R11: 1 | S11: 0 | T11: 500 | U11: 12301^12301 | V11: 100^40|100^-40 | W11: 10 | X11: 0 | Y11: 0 | Z11: 2^0^0 | AD11: 0
A12: 502 | B12: 阿拉丁召唤骷髅+ | C12: 4 | D12: 0 | E12: 1 | F12: 1 | G12: 0 | H12: 0 | I12: 0 | J12: 0 | K12: 0 | L12: 0 | M12: 0.5 | N12: 0 | O12: 0 | P12: 0 | Q12: 0 | R12: 1 | S12: 0 | T12: 500 | U12: 12301^12301^12301 | V12: 100^60|100^-60|200^0 | W12: 10 | X12: 0 | Y12: 0 | Z12: 2^0^0 | AD12: 0
A13: 511 | B13: 阿拉丁骷髅加攻加防BUFF | C13: 1 | D13: 1001^2002 | E13: 0 | F13: 3 | G13: 0 | H13: 0 | I13: 0 | J13: 0 | K13: 0 | L13: 0 | M13: 0.5 | N13: 0 | O13: 0 | P13: 0 | Q13: 0 | R13: 1 | S13: 0 | T13: 10 | U13: 0 | V13: 0 | W13: 0 | X13: 0 | Y13: 0 | Z13: 2^0^0 | AD13: 0
A14: 601 | B14: 伏地魔群体伤害 | C14: 1 | D14: 0 | E14: 1 | F14: 0 | G14: 15000 | H14: 0 | I14: 0 | J14: 0 | K14: 0.75 | L14: 0 | M14: 0.5 | N14: 0.75 | O14: 80 | P14: 80 | Q14: 0 | R14: 1 | S14: 9999 | T14: 350 | U14: 0 | V14: 0 | W14: 0 | X14: fashihuoqiu | Y14: 0 | Z14: 2^0^0 | AD14: 1500000
A15: 602 | B15: 伏地魔群体伤害+ | C15: 1 | D15: 0 | E15: 1 | F15: 0 | G15: 20000 | H15: 0 | I15: 0 | J15: 0 | K15: 0.75 | L15: 0 | M15: 0.5 | N15: 0.75 | O15: 80 | P15: 80 | Q15: 0 | R15: 1 | S15: 9999 | T15: 350 | U15: 0 | V15: 0 | W15: 0 | X15: fashihuoqiu | Y15: 0 | Z15: 2^0^0 | AD15: 2000000
A16: 701 | B16: 牧师加血 | C16: 8 | D16: 0 | E16: 0 | F16: 4 | G16: 10000 | H16: 0 | I16: 0 | J16: 0 | K16: 1 | L16: 0 | M16: 0.5 | N16: 1 | O16: 0 | P16: 0 | Q16: 0 | R16: 1 | S16: 0 | T16: 350 | U16: 0 | V16: 0 | W16: 0 | X16: mushijiaxue | Y16: 0 | Z16: 2^0^0 | AD16: 1000000
A17: 702 | B17: 牧师加血+（加攻BUFF） | C17: 8 | D17: 1004 | E17: 0 | F17: 4 | G17: 10000 | H17: 0 | I17: 0 | J17: 0 | K17: 1 | L17: 0 | M17: 0.5 | N17: 1 | O17: 0 | P17: 0 | Q17: 0 | R17: 1 | S17: 0 | T17: 350 | U17: 0 | V17: 0 | W17: 0 | X17: mushijiaxue | Y17: 0 | Z17: 2^0^0 | AD17: 1000000
A18: 801 | B18: 陈国汉白血盾 | C18: 9 | D18: 0 | E18: 0 | F18: 1 | G18: 2000 | H18: 0 | I18: 0 | J18: 0 | K18: 0 | L18: 0 | M18: 0.5 | N18: 0 | O18: 0 | P18: 0 | Q18: 0 | R18: 1 | S18: 0 | T18: 9999 | U18: 0 | V18: 0 | W18: 0 | X18: 0 | Y18: 50601 | Z18: 2^0^0 | AD18: 200000
A19: 901 | B19: 天使血量真伤BUFF | C19: 1 | D19: 8001 | E19: 0 | F19: 1 | G19: 0 | H19: 0 | I19: 0 | J19: 0 | K19: 0 | L19: 0 | M19: 0.5 | N19: 0 | O19: 0 | P19: 0 | Q19: 0 | R19: 1 | S19: 0 | T19: 10 | U19: 0 | V19: 0 | W19: 0 | X19: 0 | Y19: 0 | Z19: 2^0^0 | AD19: 0
A20: 902 | B20: 天使普攻溅射BUFF | C20: 1 | D20: 9001 | E20: 0 | F20: 1 | G20: 0 | H20: 0 | I20: 0 | J20: 0 | K20: 0 | L20: 0 | M20: 0.5 | N20: 0 | O20: 0 | P20: 0 | Q20: 0 | R20: 1 | S20: 0 | T20: 10 | U20: 0 | V20: 0 | W20: 0 | X20: 0 | Y20: 0 | Z20: 2^0^0 | AD20: 0
A21: 1001 | B21: 萨满召唤图腾 | C21: 4 | D21: 0 | E21: 1 | F21: 1 | G21: 0 | H21: 0 | I21: 0 | J21: 0 | K21: 0 | L21: 0 | M21: 0.5 | N21: 0 | O21: 0 | P21: 0 | Q21: 0 | R21: 1 | S21: 0 | T21: 500 | U21: 11401 | V21: -100^0 | W21: 1 | X21: 0 | Y21: 11302 | Z21: 2^0^0 | AD21: 0
A22: 1002 | B22: 萨满召唤树人 | C22: 4 | D22: 0 | E22: 1 | F22: 1 | G22: 0 | H22: 0 | I22: 0 | J22: 0 | K22: 0 | L22: 0 | M22: 0.5 | N22: 0 | O22: 0 | P22: 0 | Q22: 0 | R22: 1 | S22: 0 | T22: 500 | U22: 12401 | V22: 100^50 | W22: 1 | X22: 0 | Y22: 0 | Z22: 2^0^0 | AD22: 0
A23: 1101 | B23: 萨满图腾加攻加攻速光环 | C23: 2 | D23: 1002^3002 | E23: 0 | F23: 0 | G23: 0 | H23: 0 | I23: 0 | J23: 0 | K23: 9999 | L23: 0 | M23: 0.5 | N23: 0 | O23: 0 | P23: 0 | Q23: 0 | R23: 1 | S23: 9999 | T23: 250 | U23: 0 | V23: 0 | W23: 0 | X23: 0 | Y23: 0 | Z23: 2^0^0 | AD23: 0
A24: 1201 | B24: 斧王反伤物理BUFF | C24: 1 | D24: 11001 | E24: 0 | F24: 1 | G24: 0 | H24: 0 | I24: 0 | J24: 0 | K24: 0 | L24: 0 | M24: 0.5 | N24: 0 | O24: 0 | P24: 0 | Q24: 0 | R24: 1 | S24: 0 | T24: 10 | U24: 0 | V24: 0 | W24: 0 | X24: 0 | Y24: 0 | Z24: 2^0^0 | AD24: 0
A25: 1202 | B25: 斧王每秒加血BUFF | C25: 1 | D25: 10001 | E25: 0 | F25: 1 | G25: 0 | H25: 0 | I25: 0 | J25: 0 | K25: 0 | L25: 0 | M25: 0.5 | N25: 3 | O25: 0 | P25: 0 | Q25: 0 | R25: 1 | S25: 0 | T25: 10 | U25: 0 | V25: 0 | W25: 0 | X25: 0 | Y25: 0 | Z25: 2^0^0 | AD25: 0
A26: 1203 | B26: 斧王反伤真实BUFF | C26: 1 | D26: 12001 | E26: 0 | F26: 1 | G26: 0 | H26: 0 | I26: 0 | J26: 0 | K26: 0 | L26: 0 | M26: 0.5 | N26: 0 | O26: 0 | P26: 0 | Q26: 0 | R26: 1 | S26: 0 | T26: 10 | U26: 0 | V26: 0 | W26: 0 | X26: 0 | Y26: 0 | Z26: 2^0^0 | AD26: 0
A27: 1301 | B27: 龙骑士召唤龙 | C27: 5 | D27: 0 | E27: 1 | F27: 1 | G27: 0 | H27: 0 | I27: 0 | J27: 0 | K27: 0 | L27: 0 | M27: 1 | N27: 0 | O27: 0 | P27: 0 | Q27: 0 | R27: 0 | S27: 0 | T27: 9999 | U27: 118 | V27: 0^0 | W27: 1 | X27: 0 | Y27: 0 | Z27: 2^0^0 | AD27: 0
A28: 1401 | B28: 龙召唤龙战士 | C28: 5 | D28: 0 | E28: 1 | F28: 1 | G28: 0 | H28: 0 | I28: 0 | J28: 0 | K28: 0 | L28: 0 | M28: 0 | N28: 0 | O28: 0 | P28: 0 | Q28: 0 | R28: 0 | S28: 0 | T28: 9999 | U28: 117 | V28: 0^0 | W28: 1 | X28: 0 | Y28: 0 | Z28: 2^0^0 | AD28: 0
A29: 1402 | B29: 龙减攻击攻速光环 | C29: 2 | D29: 1003^3003 | E29: 1 | F29: 0 | G29: 0 | H29: 0 | I29: 0 | J29: 0 | K29: 9999 | L29: 0 | M29: 0.5 | N29: 0 | O29: 0 | P29: 0 | Q29: 0 | R29: 1 | S29: 9999 | T29: 250 | U29: 0 | V29: 0 | W29: 0 | X29: 0 | Y29: 0 | Z29: 2^0^0 | AA29: 减攻击和攻速（测试表现按顺序飘出） | AD29: 0
A30: 1501 | B30: 钢铁侠导弹子弹 | C30: 11 | D30: 0 | E30: 1 | F30: 2 | G30: 0 | H30: 8 | I30: 11902^10^0^1 | J30: 0 | K30: 0 | L30: 0 | M30: 0 | N30: 0 | O30: 0 | P30: 0 | Q30: 0 | R30: 1 | S30: 1 | T30: 400 | U30: 0 | V30: 0 | W30: 0 | X30: 0 | Y30: 11902 | Z30: 2^0^0 | AD30: 0
A31: 1502 | B31: 钢铁侠导弹晕眩 | C31: 1 | D31: 15001 | E31: 1 | F31: 0 | G31: 2000 | H31: 0 | I31: 0 | J31: 0 | K31: 1 | L31: 0 | M31: 0.5 | N31: 0 | O31: 150 | P31: 80 | Q31: 1 | R31: 1 | S31: 9999 | T31: 400 | U31: 0 | V31: 0 | W31: 0 | X31: jijiayunxuan | Y31: 0 | Z31: 1^0^0 | AD31: =G31*100 -> 200000
A32: 1601 | B32: 绿巨人顶盾 | C32: 6 | D32: 18001 | E32: 1 | F32: 1 | G32: 0 | H32: 0 | I32: 0 | J32: 10 | K32: 0 | L32: 0 | M32: 0.5 | N32: 0 | O32: 0 | P32: 0 | Q32: 0 | R32: 1 | S32: 0 | T32: 400 | U32: 0 | V32: 0 | W32: 0 | X32: 0 | Y32: 11903 | Z32: 2^0^0 | AD32: 0
A33: 1602 | B33: 绿巨人顶盾免疫远程光环 | C33: 2 | D33: 18002 | E33: 0 | F33: 0 | G33: 0 | H33: 11 | I33: 0 | J33: 0 | K33: 9999 | L33: 0 | M33: 0.5 | N33: 0 | O33: 0 | P33: 0 | Q33: 0 | R33: 1 | S33: 9999 | T33: 250 | U33: 0 | V33: 0 | W33: 0 | X33: 0 | Y33: 0 | Z33: 1^0^0 | AA33: 减攻击和攻速（测试表现按顺序飘出） | AD33: =G33*100 -> 0
A34: 1701 | B34: 浣熊卫队召唤树人 | C34: 4 | D34: 0 | E34: 0 | F34: 1 | G34: 0 | H34: 0 | I34: 0 | J34: 0 | K34: 0 | L34: 0 | M34: 0.5 | N34: 0 | O34: 0 | P34: 0 | Q34: 0 | R34: 1 | S34: 0 | T34: 1200 | U34: 12201 | V34: 150^20 | W34: 1 | X34: 0 | Y34: 0 | Z34: 2^0^0 | AD34: 0
A35: 1702 | B35: 浣熊卫队召唤树人2 | C35: 4 | D35: 0 | E35: 0 | F35: 1 | G35: 0 | H35: 0 | I35: 0 | J35: 0 | K35: 0 | L35: 0 | M35: 0.5 | N35: 0 | O35: 0 | P35: 0 | Q35: 0 | R35: 1 | S35: 0 | T35: 1200 | U35: 12202 | V35: 150^20 | W35: 1 | X35: 0 | Y35: 0 | Z35: 2^0^0 | AD35: 0
A36: 1703 | B36: 浣熊攻击对树人加血BUFF | C36: 1 | D36: 19001 | E36: 0 | F36: 1 | G36: 0 | H36: 0 | I36: 0 | J36: 0 | K36: 0 | L36: 0 | M36: 0.5 | N36: 0 | O36: 0 | P36: 0 | Q36: 0 | R36: 1 | S36: 0 | T36: 9999 | U36: 0 | V36: 0 | W36: 0 | X36: 0 | Y36: 0 | Z36: 2^0^0 | AD36: 0
A37: 1801 | B37: 萨满火人吐火 | C37: 1 | D37: 0 | E37: 1 | F37: 0 | G37: 20000 | H37: 0 | I37: 0 | J37: 0 | K37: 1 | L37: 0 | M37: 0.5 | N37: 1 | O37: 100 | P37: 80 | Q37: 0 | R37: 1 | S37: 1 | T37: 10 | U37: 0 | V37: 0 | W37: 0 | X37: longtuhuo | Y37: 0 | Z37: 2^0^0 | AD37: =G37*100 -> 2000000
A38: 1901 | B38: 召唤近战兵 | C38: 4 | D38: 0 | E38: 1 | F38: 1 | G38: 0 | H38: 0 | I38: 0 | J38: 0 | K38: 0 | L38: 0 | M38: 0.5 | N38: 0 | O38: 0 | P38: 0 | Q38: 0 | R38: 0 | S38: 0 | T38: 9999 | U38: 12601 | V38: 0^60 | W38: 0 | X38: 0 | Y38: 0 | Z38: 2^0^0 | AD38: 0
A39: 2001 | B39: 召唤近战兵 | C39: 4 | D39: 0 | E39: 1 | F39: 1 | G39: 0 | H39: 0 | I39: 0 | J39: 0 | K39: 0 | L39: 0 | M39: 0.5 | N39: 0 | O39: 0 | P39: 0 | Q39: 0 | R39: 0 | S39: 0 | T39: 9999 | U39: 12601^12601 | V39: 0^70|70^35 | W39: 0 | X39: 0 | Y39: 0 | Z39: 2^0^0 | AD39: 0
A40: 2101 | B40: 龙吐火 | C40: 1 | D40: 0 | E40: 1 | F40: 0 | G40: 20000 | H40: 9 | I40: 0 | J40: 0 | K40: 0.75 | L40: 0 | M40: 0.5 | N40: 0.75 | O40: 100 | P40: 80 | Q40: 0 | R40: 1 | S40: 9999 | T40: 10 | U40: 0 | V40: 0 | W40: 0 | X40: long_bullet_hit | Y40: 0 | Z40: 1^0^-40 | AD40: 2000000
A41: 50001 | B41: BOSS闪电伤害递增 | C41: 11 | D41: 0 | E41: 1 | F41: 2 | G41: 5000 | H41: 8 | I41: 50100^1^0^0 | J41: 0 | K41: 0 | L41: 0 | M41: 0.5 | N41: 0 | O41: 0 | P41: 0 | Q41: 0 | R41: 1 | S41: 0 | T41: 410 | U41: 0 | V41: 0 | W41: 0 | X41: 0 | Y41: 0 | Z41: 2^0^0 | AD41: =G41*100 -> 500000
A42: 50002 | B42: 蘑菇王扔炸弹 | C42: 11 | D42: 0 | E42: 1 | F42: 5 | G42: 0 | H42: 8 | I42: 50099^1^0^0 | J42: 0 | K42: 0 | L42: 0 | M42: 0.5 | N42: 0 | O42: 150 | P42: 80 | Q42: 0 | R42: 1 | S42: 1 | T42: 600 | U42: 0 | V42: 0 | W42: 0 | X42: 0 | Y42: 0 | Z42: 2^0^0 | AD42: 0
A43: 50003 | B43: 蘑菇炸弹爆炸 | C43: 1 | D43: 0 | E43: 1 | F43: 0 | G43: 40000 | H43: 0 | I43: 0 | J43: 0 | K43: 1 | L43: 0 | M43: 0.5 | N43: 1 | O43: 300 | P43: 200 | Q43: 0 | R43: 1 | S43: 9999 | T43: 9999 | U43: 0 | V43: 0 | W43: 0 | X43: moguwang_bullet_boom | Y43: 0 | Z43: 1^0^0 | AD43: 4000000
A44: 50004 | B44: 孢芽爆炸 | C44: 1 | D44: 0 | E44: 1 | F44: 0 | G44: 40000 | H44: 0 | I44: 0 | J44: 0 | K44: 1 | L44: 0 | M44: 0.5 | N44: 1 | O44: 300 | P44: 200 | Q44: 0 | R44: 1 | S44: 9999 | T44: 9999 | U44: 0 | V44: 0 | W44: 0 | X44: moguwang_bullet_boom | Y44: 0 | Z44: 1^0^0 | AD44: =G44*100 -> 4000000
A45: 50101 | B45: 连锁闪电伤害递减 | C45: 1 | D45: 0 | E45: 1 | F45: 1 | G45: 10000 | H45: 2 | I45: 1000 | J45: 0 | K45: 0.5 | L45: 0 | M45: 0 | N45: 0.5 | O45: 300 | P45: 200 | Q45: 0 | R45: 1 | S45: 0 | T45: 9999 | U45: 0 | V45: 0 | W45: 0 | X45: flash_hit | Y45: 0 | Z45: 2^0^0 | AD45: 1000000
A46: 50102 | B46: 连锁闪电晕眩boss减半 | C46: 1 | D46: 15002 | E46: 1 | F46: 1 | G46: 10000 | H46: 2 | I46: 1000 | J46: 0 | K46: 0.5 | L46: 0 | M46: 0 | N46: 0.5 | O46: 300 | P46: 200 | Q46: 2 | R46: 1 | S46: 0 | T46: 9999 | U46: 0 | V46: 0 | W46: 0 | X46: flash_hit | Y46: 0 | Z46: 2^0^0 | AD46: 1000000
A47: 50103 | B47: 连锁闪电晕眩boss减半伤害不递减 | C47: 1 | D47: 15002 | E47: 1 | F47: 1 | G47: 10000 | H47: 0 | I47: 0 | J47: 0 | K47: 0.5 | L47: 0 | M47: 0 | N47: 0.5 | O47: 300 | P47: 200 | Q47: 2 | R47: 1 | S47: 0 | T47: 9999 | U47: 0 | V47: 0 | W47: 0 | X47: flash_hit | Y47: 0 | Z47: 2^0^0 | AD47: 1000000
A48: 50201 | B48: 龙卷风 | C48: 7 | D48: 17003 | E48: 1 | F48: 0 | G48: 10000 | H48: 0 | I48: 0 | J48: 0 | K48: 5 | L48: 1 | M48: 0.5 | N48: 0.5 | O48: 300 | P48: 200 | Q48: 0 | R48: 1 | S48: 0 | T48: 9999 | U48: 0 | V48: 0 | W48: 0 | X48: feng | Y48: 50201 | Z48: 2^0^0 | AD48: 1000000
A49: 50202 | B49: 龙卷风降攻boss减半 | C49: 7 | D49: 1006^17003 | E49: 1 | F49: 0 | G49: 10000 | H49: 0 | I49: 0 | J49: 0 | K49: 5 | L49: 1 | M49: 0.5 | N49: 0.5 | O49: 300 | P49: 200 | Q49: 0 | R49: 1 | S49: 0 | T49: 9999 | U49: 0 | V49: 0 | W49: 0 | X49: feng | Y49: 50201 | Z49: 2^0^0 | AD49: 1000000
A50: 50203 | B50: 龙卷风降攻boss不减半 | C50: 7 | D50: 1007^17003 | E50: 1 | F50: 0 | G50: 10000 | H50: 0 | I50: 0 | J50: 0 | K50: 5 | L50: 1 | M50: 0.5 | N50: 0.5 | O50: 300 | P50: 200 | Q50: 0 | R50: 1 | S50: 0 | T50: 9999 | U50: 0 | V50: 0 | W50: 0 | X50: feng | Y50: 50201 | Z50: 2^0^0 | AD50: 1000000
A51: 50301 | B51: 冰锥 | C51: 1 | D51: 0 | E51: 1 | F51: 0 | G51: 10000 | H51: 0 | I51: 0 | J51: 0 | K51: 1 | L51: 0 | M51: 0.5 | N51: 1 | O51: 100 | P51: 100 | Q51: 0 | R51: 1 | S51: 9999 | T51: 9999 | U51: 0 | V51: 0 | W51: 0 | X51: ice_hit | Y51: 0 | Z51: 2^0^0 | AD51: 1000000
A52: 50302 | B52: 冰锥降攻速boss减半 | C52: 1 | D52: 3004 | E52: 1 | F52: 0 | G52: 10000 | H52: 0 | I52: 0 | J52: 0 | K52: 1 | L52: 0 | M52: 0.5 | N52: 1 | O52: 100 | P52: 100 | Q52: 0 | R52: 1 | S52: 9999 | T52: 9999 | U52: 0 | V52: 0 | W52: 0 | X52: ice_hit | Y52: 0 | Z52: 2^0^0 | AD52: 1000000
A53: 50303 | B53: 冰锥降攻速boss减半数量+X | C53: 1 | D53: 3004 | E53: 1 | F53: 0 | G53: 10000 | H53: 0 | I53: 0 | J53: 0 | K53: 1 | L53: 0 | M53: 0.5 | N53: 1 | O53: 100 | P53: 100 | Q53: 0 | R53: 1 | S53: 9999 | T53: 9999 | U53: 0 | V53: 0 | W53: 0 | X53: ice_hit | Y53: 0 | Z53: 2^0^0 | AD53: 1000000
A54: 50401 | B54: 流星火雨 | C54: 1 | D54: 17001 | E54: 1 | F54: 0 | G54: 10000 | H54: 4 | I54: 2000 | J54: 0 | K54: 1 | L54: 0 | M54: 0.5 | N54: 1 | O54: 50 | P54: 50 | Q54: 0 | R54: 1 | S54: 9999 | T54: 9999 | U54: 0 | V54: 0 | W54: 0 | X54: yunshi_boom | Y54: 0 | Z54: 2^0^0 | AD54: 1000000
A55: 50402 | B55: 流星火雨晕眩boss减半 | C55: 1 | D55: 17001^15003 | E55: 1 | F55: 0 | G55: 10000 | H55: 4 | I55: 2000 | J55: 0 | K55: 1 | L55: 0 | M55: 0.5 | N55: 1 | O55: 50 | P55: 50 | Q55: 3 | R55: 1 | S55: 9999 | T55: 9999 | U55: 0 | V55: 0 | W55: 0 | X55: yunshi_boom | Y55: 0 | Z55: 2^0^0 | AD55: 1000000
A56: 50403 | B56: 流星火雨N秒N次伤害 | C56: 1 | D56: 17002^15003 | E56: 1 | F56: 0 | G56: 10000 | H56: 4 | I56: 2000 | J56: 0 | K56: 1 | L56: 0 | M56: 0.5 | N56: 1 | O56: 50 | P56: 50 | Q56: 3 | R56: 1 | S56: 9999 | T56: 9999 | U56: 0 | V56: 0 | W56: 0 | X56: yunshi_boom | Y56: 0 | Z56: 2^0^0 | AD56: 1000000
A57: 50501 | B57: 恢复 | C57: 1 | D57: 10002 | E57: 0 | F57: 4 | G57: 0 | H57: 0 | I57: 0 | J57: 0 | K57: 1 | L57: 0 | M57: 0.5 | N57: 1 | O57: 360 | P57: 240 | Q57: 0 | R57: 1 | S57: 3 | T57: 9999 | U57: 0 | V57: 0 | W57: 0 | X57: mushijiaxue | Y57: 50501 | Z57: 2^0^0 | AD57: 0
A58: 50502 | B58: 恢复+N秒 | C58: 1 | D58: 10003 | E58: 0 | F58: 4 | G58: 0 | H58: 0 | I58: 0 | J58: 0 | K58: 1 | L58: 0 | M58: 0.5 | N58: 1 | O58: 360 | P58: 240 | Q58: 0 | R58: 1 | S58: 4 | T58: 9999 | U58: 0 | V58: 0 | W58: 0 | X58: mushijiaxue | Y58: 50501 | Z58: 2^0^0 | AD58: 0
A59: 50503 | B59: 恢复全场 | C59: 1 | D59: 10003 | E59: 0 | F59: 4 | G59: 0 | H59: 0 | I59: 0 | J59: 0 | K59: 1 | L59: 0 | M59: 0.5 | N59: 1 | O59: 1920 | P59: 1080 | Q59: 0 | R59: 1 | S59: 4 | T59: 9999 | U59: 0 | V59: 0 | W59: 0 | X59: mushijiaxue | Y59: 50501 | Z59: 2^0^0 | AD59: 0
A60: 50601 | B60: 圣盾 | C60: 10 | D60: 0 | E60: 0 | F60: 4 | G60: 10000 | H60: 7 | I60: 10000 | J60: 0 | K60: 1 | L60: 0 | M60: 0.5 | N60: 1 | O60: 360 | P60: 240 | Q60: 0 | R60: 1 | S60: 1 | T60: 9999 | U60: 0 | V60: 0 | W60: 0 | X60: 0 | Y60: 50601 | Z60: 2^0^0 | AD60: 1000000
A61: 50602 | B61: 圣盾+xN秒 | C61: 10 | D61: 0 | E61: 0 | F61: 4 | G61: 10000 | H61: 7 | I61: 10000 | J61: 0 | K61: 1 | L61: 0 | M61: 0.5 | N61: 1 | O61: 360 | P61: 240 | Q61: 0 | R61: 1 | S61: 2 | T61: 9999 | U61: 0 | V61: 0 | W61: 0 | X61: 0 | Y61: 50601 | Z61: 2^0^0 | AD61: =G61*100 -> 1000000
A62: 50603 | B62: 圣盾+N个 | C62: 10 | D62: 0 | E62: 0 | F62: 4 | G62: 13000 | H62: 7 | I62: 10000 | J62: 0 | K62: 1 | L62: 0 | M62: 0.5 | N62: 1 | O62: 360 | P62: 240 | Q62: 0 | R62: 1 | S62: 2 | T62: 9999 | U62: 0 | V62: 0 | W62: 0 | X62: 0 | Y62: 50601 | Z62: 2^0^0 | AD62: =G62*100 -> 1300000
A63: 50701 | B63: 能量灌注1 | C63: 1 | D63: 1008 | E63: 0 | F63: 0 | G63: 0 | H63: 10 | I63: 8 | J63: 0 | K63: 1 | L63: 0 | M63: 0.5 | N63: 1 | O63: 1920 | P63: 1080 | Q63: 0 | R63: 1 | S63: 9999 | T63: 9999 | U63: 0 | V63: 0 | W63: 0 | X63: 0 | Y63: 0 | Z63: 2^0^0 | AD63: 0
A64: 50702 | B64: 能量灌注2 | C64: 1 | D64: 1008 | E64: 0 | F64: 0 | G64: 0 | H64: 10 | I64: 11 | J64: 0 | K64: 1 | L64: 0 | M64: 0.5 | N64: 1 | O64: 1920 | P64: 1080 | Q64: 0 | R64: 1 | S64: 9999 | T64: 9999 | U64: 0 | V64: 0 | W64: 0 | X64: 0 | Y64: 0 | Z64: 2^0^0 | AD64: =G64*100 -> 0
A65: 50703 | B65: 能量灌注3 | C65: 1 | D65: 1008 | E65: 0 | F65: 0 | G65: 0 | H65: 10 | I65: 15 | J65: 0 | K65: 1 | L65: 0 | M65: 0.5 | N65: 1 | O65: 1920 | P65: 1080 | Q65: 0 | R65: 1 | S65: 9999 | T65: 9999 | U65: 0 | V65: 0 | W65: 0 | X65: 0 | Y65: 0 | Z65: 2^0^0 | AD65: 0
A66: 50704 | B66: 能量灌注4 | C66: 1 | D66: 1008 | E66: 0 | F66: 0 | G66: 0 | H66: 10 | I66: 20 | J66: 0 | K66: 1 | L66: 0 | M66: 0.5 | N66: 1 | O66: 1920 | P66: 1080 | Q66: 0 | R66: 1 | S66: 9999 | T66: 9999 | U66: 0 | V66: 0 | W66: 0 | X66: 0 | Y66: 0 | Z66: 2^0^0 | AD66: =G66*100 -> 0
A67: 50801 | B67: 祷言 | C67: 8 | D67: 0 | E67: 0 | F67: 4 | G67: 10000 | H67: 6 | I67: 500 | J67: 0 | K67: 1 | L67: 0 | M67: 0.5 | N67: 1 | O67: 360 | P67: 240 | Q67: 0 | R67: 1 | S67: 2 | T67: 9999 | U67: 0 | V67: 0 | W67: 0 | X67: daoyan | Y67: 50801 | Z67: 2^0^0 | AD67: 1000000
A68: 50802 | B68: 祷言+N个 | C68: 8 | D68: 0 | E68: 0 | F68: 4 | G68: 10000 | H68: 6 | I68: 500 | J68: 0 | K68: 1 | L68: 0 | M68: 0.5 | N68: 1 | O68: 360 | P68: 240 | Q68: 0 | R68: 1 | S68: 3 | T68: 9999 | U68: 0 | V68: 0 | W68: 0 | X68: daoyan | Y68: 50801 | Z68: 2^0^0 | AD68: =G68*100 -> 1000000
A69: 50803 | B69: 祷言+N个+额外恢复 | C69: 8 | D69: 0 | E69: 0 | F69: 4 | G69: 10000 | H69: 3^6 | I69: 5000^50|500 | J69: 0 | K69: 1 | L69: 0 | M69: 0.5 | N69: 1 | O69: 360 | P69: 240 | Q69: 0 | R69: 1 | S69: 3 | T69: 9999 | U69: 0 | V69: 0 | W69: 0 | X69: daoyan | Y69: 50801 | Z69: 2^0^0 | AD69: =G69*100 -> 1000000
A70: 60001 | B70: 怪物加血50% | C70: 8 | D70: 0 | E70: 0 | F70: 4 | G70: 5000 | H70: 0 | I70: 0 | J70: 0 | K70: 1 | L70: 0 | M70: 0.5 | N70: 1 | O70: 0 | P70: 0 | Q70: 0 | R70: 1 | S70: 0 | T70: 450 | U70: 0 | V70: 0 | W70: 0 | X70: mushijiaxue | Y70: 0 | Z70: 2^0^0 | AD70: 500000
A71: 60002 | B71: 森林巨兽召树精（密林-5） | C71: 4 | D71: 0 | E71: 1 | F71: 1 | G71: 0 | H71: 0 | I71: 0 | J71: 0 | K71: 0 | L71: 0 | M71: 0.5 | N71: 0 | O71: 0 | P71: 0 | Q71: 0 | R71: 1 | S71: 0 | T71: 500 | U71: 60106^60106 | V71: 100^40|100^-40 | W71: 6 | X71: 0 | Y71: 0 | Z71: 2^0^0 | AD71: 0
A72: 60003 | B72: 怪物加血60% | C72: 8 | D72: 0 | E72: 0 | F72: 4 | G72: 6000 | H72: 0 | I72: 0 | J72: 0 | K72: 1 | L72: 0 | M72: 0.5 | N72: 1 | O72: 0 | P72: 0 | Q72: 0 | R72: 1 | S72: 0 | T72: 450 | U72: 0 | V72: 0 | W72: 0 | X72: mushijiaxue | Y72: 0 | Z72: 2^0^0 | AD72: =G72*100 -> 600000
A73: 60004 | B73: 冰霜巨人范围技能伤害（地震） | C73: 1 | D73: 0 | E73: 1 | F73: 0 | G73: 12000 | H73: 0 | I73: 0 | J73: 0 | K73: 0.75 | L73: 0 | M73: 0.5 | N73: 0.75 | O73: 80 | P73: 80 | Q73: 0 | R73: 1 | S73: 9999 | T73: 150 | U73: 0 | V73: 0 | W73: 0 | X73: bingshuangzadi | Y73: 0 | Z73: 1^0^0 | AD73: 1200000
A74: 60005 | B74: 岩浆巨兽技能范围伤害（火雨） | C74: 1 | D74: 15003 | E74: 1 | F74: 0 | G74: 10000 | H74: 0 | I74: 0 | J74: 0 | K74: 1 | L74: 0 | M74: 0.5 | N74: 1 | O74: 360 | P74: 240 | Q74: 0 | R74: 1 | S74: 9999 | T74: 9999 | U74: 0 | V74: 0 | W74: 0 | X74: rongyan_boom | Y74: 0 | Z74: 2^0^0
A75: 60006 | B75: 怪物加血70% | C75: 8 | D75: 0 | E75: 0 | F75: 4 | G75: 7000 | H75: 0 | I75: 0 | J75: 0 | K75: 1 | L75: 0 | M75: 0.5 | N75: 1 | O75: 0 | P75: 0 | Q75: 0 | R75: 1 | S75: 0 | T75: 450 | U75: 0 | V75: 0 | W75: 0 | X75: mushijiaxue | Y75: 0 | Z75: 2^0^0 | AD75: =G75*100 -> 700000
A76: 60007 | B76: 森林巨兽召树精（精英密林-3） | C76: 4 | D76: 0 | E76: 1 | F76: 1 | G76: 0 | H76: 0 | I76: 0 | J76: 0 | K76: 0 | L76: 0 | M76: 0.5 | N76: 0 | O76: 0 | P76: 0 | Q76: 0 | R76: 1 | S76: 0 | T76: 500 | U76: 70066^70066 | V76: 100^40|100^-40 | W76: 6 | X76: 0 | Y76: 0 | Z76: 2^0^0 | AD76: 0
A77: 60008 | B77: 森林巨兽召树精（沼泽-5） | C77: 4 | D77: 0 | E77: 1 | F77: 1 | G77: 0 | H77: 0 | I77: 0 | J77: 0 | K77: 0 | L77: 0 | M77: 0.5 | N77: 0 | O77: 0 | P77: 0 | Q77: 0 | R77: 1 | S77: 0 | T77: 500 | U77: 60358^60358 | V77: 100^40|100^-40 | W77: 6 | X77: 0 | Y77: 0 | Z77: 2^0^0 | AD77: 0
A78: 60009 | B78: 森林巨兽召树精（绿洲-5） | C78: 4 | D78: 0 | E78: 1 | F78: 1 | G78: 0 | H78: 0 | I78: 0 | J78: 0 | K78: 0 | L78: 0 | M78: 0.5 | N78: 0 | O78: 0 | P78: 0 | Q78: 0 | R78: 1 | S78: 0 | T78: 500 | U78: 60408^60408 | V78: 100^40|100^-40 | W78: 6 | X78: 0 | Y78: 0 | Z78: 2^0^0 | AD78: 0
A79: 60010 | B79: 森林巨兽召树精（荒林-5） | C79: 4 | D79: 0 | E79: 1 | F79: 1 | G79: 0 | H79: 0 | I79: 0 | J79: 0 | K79: 0 | L79: 0 | M79: 0.5 | N79: 0 | O79: 0 | P79: 0 | Q79: 0 | S79: 0 | T79: 500 | U79: 60458^60458 | V79: 100^40|100^-40 | W79: 6 | X79: 0 | Y79: 0 | Z79: 2^0^0
A80: 60011 | B80: 怪物加血80% | C80: 8 | D80: 0 | E80: 0 | F80: 4 | G80: 8000 | H80: 0 | I80: 0 | J80: 0 | K80: 1 | L80: 0 | M80: 0.5 | N80: 1 | O80: 0 | P80: 0 | Q80: 0 | R80: 1 | S80: 0 | T80: 450 | U80: 0 | V80: 0 | W80: 0 | X80: mushijiaxue | Y80: 0 | Z80: 2^0^0 | AD80: =G80*100 -> 800000
A81: 60012 | B81: 怪物加血90% | C81: 8 | D81: 0 | E81: 0 | F81: 4 | G81: 9000 | H81: 0 | I81: 0 | J81: 0 | K81: 1 | L81: 0 | M81: 0.5 | N81: 1 | O81: 0 | P81: 0 | Q81: 0 | R81: 1 | S81: 0 | T81: 450 | U81: 0 | V81: 0 | W81: 0 | X81: mushijiaxue | Y81: 0 | Z81: 2^0^0 | AD81: =G81*100 -> 900000
A82: 60013 | B82: 岩浆巨兽技能火球子弹（火雨） | C82: 11 | D82: 0 | E82: 1 | F82: 2 | G82: 10000 | H82: 8 | I82: 60006^1^0^0 | J82: 0 | K82: 1 | L82: 0 | M82: 0.5 | N82: 1 | O82: 80 | P82: 80 | Q82: 0 | R82: 1 | S82: 1 | T82: 450 | U82: 0 | V82: 0 | W82: 0 | X82: 0 | Y82: 0 | Z82: 2^0^0
A83: 60014 | B83: 怪物加血100% | C83: 8 | D83: 0 | E83: 0 | F83: 4 | G83: 10000 | H83: 0 | I83: 0 | J83: 0 | K83: 1 | L83: 0 | M83: 0.5 | N83: 1 | O83: 0 | P83: 0 | Q83: 0 | R83: 1 | S83: 0 | T83: 450 | U83: 0 | V83: 0 | W83: 0 | X83: mushijiaxue | Y83: 0 | Z83: 2^0^0 | AD83: =G83*100 -> 1000000
A84: 61000 | B84: 孢子人召小蘑菇（沼泽-3） | C84: 4 | D84: 0 | E84: 1 | F84: 1 | G84: 0 | H84: 0 | I84: 0 | J84: 0 | K84: 0 | L84: 0 | M84: 0.5 | N84: 0 | O84: 0 | P84: 0 | Q84: 0 | R84: 1 | S84: 0 | T84: 500 | U84: 60336 | V84: 100^40 | W84: 3 | X84: 0 | Y84: 0 | Z84: 2^0^0 | AD84: 0
A85: 61001 | B85: 孢子人召小蘑菇（沼泽-4） | C85: 4 | D85: 0 | E85: 1 | F85: 1 | G85: 0 | H85: 0 | I85: 0 | J85: 0 | K85: 0 | L85: 0 | M85: 0.5 | N85: 0 | O85: 0 | P85: 0 | Q85: 0 | R85: 1 | S85: 0 | T85: 500 | U85: 60346 | V85: 100^40 | W85: 3 | X85: 0 | Y85: 0 | Z85: 2^0^0 | AD85: =G85*100 -> 0
A86: 61002 | B86: 孢子人召小蘑菇（沼泽-5） | C86: 4 | D86: 0 | E86: 1 | F86: 1 | G86: 0 | H86: 0 | I86: 0 | J86: 0 | K86: 0 | L86: 0 | M86: 0.5 | N86: 0 | O86: 0 | P86: 0 | Q86: 0 | R86: 1 | S86: 0 | T86: 500 | U86: 60357 | V86: 100^40 | W86: 3 | X86: 0 | Y86: 0 | Z86: 2^0^0 | AD86: =G86*100 -> 0
A87: 61003 | B87: 孢子人召小蘑菇（绿洲-3） | C87: 4 | D87: 0 | E87: 1 | F87: 1 | G87: 0 | H87: 0 | I87: 0 | J87: 0 | K87: 0 | L87: 0 | M87: 0.5 | N87: 0 | O87: 0 | P87: 0 | Q87: 0 | R87: 1 | S87: 0 | T87: 500 | U87: 60386 | V87: 100^40 | W87: 3 | X87: 0 | Y87: 0 | Z87: 2^0^0 | AD87: 0
A88: 61004 | B88: 孢子人召小蘑菇（绿洲-4） | C88: 4 | D88: 0 | E88: 1 | F88: 1 | G88: 0 | H88: 0 | I88: 0 | J88: 0 | K88: 0 | L88: 0 | M88: 0.5 | N88: 0 | O88: 0 | P88: 0 | Q88: 0 | R88: 1 | S88: 0 | T88: 500 | U88: 60396 | V88: 100^40 | W88: 3 | X88: 0 | Y88: 0 | Z88: 2^0^0 | AD88: 0
A89: 61005 | B89: 孢子人召小蘑菇（绿洲-5） | C89: 4 | D89: 0 | E89: 1 | F89: 1 | G89: 0 | H89: 0 | I89: 0 | J89: 0 | K89: 0 | L89: 0 | M89: 0.5 | N89: 0 | O89: 0 | P89: 0 | Q89: 0 | R89: 1 | S89: 0 | T89: 500 | U89: 60407^60407 | V89: 100^40|100^-40 | W89: 4 | X89: 0 | Y89: 0 | Z89: 2^0^0 | AD89: =G89*100 -> 0
A90: 61006 | B90: 孢子人召小蘑菇（荒林-3） | C90: 4 | D90: 0 | E90: 1 | F90: 1 | G90: 0 | H90: 0 | I90: 0 | J90: 0 | K90: 0 | L90: 0 | M90: 0.5 | N90: 0 | O90: 0 | P90: 0 | Q90: 0 | R90: 1 | S90: 0 | T90: 500 | U90: 60436^60436 | V90: 100^40|100^-40 | W90: 4 | X90: 0 | Y90: 0 | Z90: 2^0^0 | AD90: 0
A91: 61007 | B91: 孢子人召小蘑菇（荒林-4） | C91: 4 | D91: 0 | E91: 1 | F91: 1 | G91: 0 | H91: 0 | I91: 0 | J91: 0 | K91: 0 | L91: 0 | M91: 0.5 | N91: 0 | O91: 0 | P91: 0 | Q91: 0 | R91: 1 | S91: 0 | T91: 500 | U91: 60446^60446 | V91: 100^40|100^-40 | W91: 4 | X91: 0 | Y91: 0 | Z91: 2^0^0 | AD91: 0
A92: 61008 | B92: 孢子人召小蘑菇（荒林-5） | C92: 4 | D92: 0 | E92: 1 | F92: 1 | G92: 0 | H92: 0 | I92: 0 | J92: 0 | K92: 0 | L92: 0 | M92: 0.5 | N92: 0 | O92: 0 | P92: 0 | Q92: 0 | R92: 1 | S92: 0 | T92: 500 | U92: 60457^60457 | V92: 100^40|100^-40 | W92: 4 | X92: 0 | Y92: 0 | Z92: 2^0^0 | AD92: =G92*100 -> 0
A93: 61009 | B93: 孢子人召小蘑菇（精英沼泽-2） | C93: 4 | D93: 0 | E93: 1 | F93: 1 | G93: 0 | H93: 0 | I93: 0 | J93: 0 | K93: 0 | L93: 0 | M93: 0.5 | N93: 0 | O93: 0 | P93: 0 | Q93: 0 | R93: 1 | S93: 0 | T93: 500 | U93: 70206 | V93: 100^40 | W93: 3 | X93: 0 | Y93: 0 | Z93: 2^0^0
A94: 61010 | B94: 孢子人召小蘑菇（精英沼泽-3） | C94: 4 | D94: 0 | E94: 1 | F94: 1 | G94: 0 | H94: 0 | I94: 0 | J94: 0 | K94: 0 | L94: 0 | M94: 0.5 | N94: 0 | O94: 0 | P94: 0 | Q94: 0 | R94: 1 | S94: 0 | T94: 500 | U94: 70217^70217 | V94: 100^40|100^-40 | W94: 4 | X94: 0 | Y94: 0 | Z94: 2^0^0
A95: 61011 | B95: 森林巨兽召树精（精英沼泽-3） | C95: 4 | D95: 0 | E95: 1 | F95: 1 | G95: 0 | H95: 0 | I95: 0 | J95: 0 | K95: 0 | L95: 0 | M95: 0.5 | N95: 0 | O95: 0 | P95: 0 | Q95: 0 | R95: 1 | S95: 0 | T95: 500 | U95: 70218^70218 | V95: 100^40|100^-40 | W95: 6 | X95: 0 | Y95: 0 | Z95: 2^0^0
A96: 61012 | B96: 孢子人召小蘑菇（精英绿洲-2） | C96: 4 | D96: 0 | E96: 1 | F96: 1 | G96: 0 | H96: 0 | I96: 0 | J96: 0 | K96: 0 | L96: 0 | M96: 0.5 | N96: 0 | O96: 0 | P96: 0 | Q96: 0 | R96: 1 | S96: 0 | T96: 500 | U96: 70236^70236 | V96: 100^40|100^-40 | W96: 4 | X96: 0 | Y96: 0 | Z96: 2^0^0
A97: 61013 | B97: 孢子人召小蘑菇（精英绿洲-3） | C97: 4 | D97: 0 | E97: 1 | F97: 1 | G97: 0 | H97: 0 | I97: 0 | J97: 0 | K97: 0 | L97: 0 | M97: 0.5 | N97: 0 | O97: 0 | P97: 0 | Q97: 0 | R97: 1 | S97: 0 | T97: 500 | U97: 70247^70247 | V97: 100^40|100^-40 | W97: 4 | X97: 0 | Y97: 0 | Z97: 2^0^0
A98: 61014 | B98: 森林巨兽召树精（精英绿洲-3） | C98: 4 | D98: 0 | E98: 1 | F98: 1 | G98: 0 | H98: 0 | I98: 0 | J98: 0 | K98: 0 | L98: 0 | M98: 0.5 | N98: 0 | O98: 0 | P98: 0 | Q98: 0 | R98: 1 | S98: 0 | T98: 500 | U98: 70248^70248 | V98: 100^40|100^-40 | W98: 6 | X98: 0 | Y98: 0 | Z98: 2^0^0
A99: 61015 | B99: 孢子人召小蘑菇（精英荒林-2） | C99: 4 | D99: 0 | E99: 1 | F99: 1 | G99: 0 | H99: 0 | I99: 0 | J99: 0 | K99: 0 | L99: 0 | M99: 0.5 | N99: 0 | O99: 0 | P99: 0 | Q99: 0 | R99: 1 | S99: 0 | T99: 500 | U99: 70266^70266 | V99: 100^40|100^-40 | W99: 4 | X99: 0 | Y99: 0 | Z99: 2^0^0
A100: 61016 | B100: 孢子人召小蘑菇（精英荒林-3） | C100: 4 | D100: 0 | E100: 1 | F100: 1 | G100: 0 | H100: 0 | I100: 0 | J100: 0 | K100: 0 | L100: 0 | M100: 0.5 | N100: 0 | O100: 0 | P100: 0 | Q100: 0 | R100: 1 | S100: 0 | T100: 500 | U100: 70277^70277 | V100: 100^40|100^-40 | W100: 4 | X100: 0 | Y100: 0 | Z100: 2^0^0
A101: 61017 | B101: 森林巨兽召树精（精英荒林-3） | C101: 4 | D101: 0 | E101: 1 | F101: 1 | G101: 0 | H101: 0 | I101: 0 | J101: 0 | K101: 0 | L101: 0 | M101: 0.5 | N101: 0 | O101: 0 | P101: 0 | Q101: 0 | R101: 1 | S101: 0 | T101: 500 | U101: 70271^70271 | V101: 100^40|100^-40 | W101: 8 | X101: 0 | Y101: 0 | Z101: 2^0^0
A102: 61018 | B102: boos免疫晕眩减速击退 | C102: 1 | D102: 61018 | E102: 0 | F102: 1 | G102: 0 | H102: 0 | I102: 0 | J102: 0 | K102: 0 | L102: 0 | M102: 0.5 | N102: 0 | O102: 0 | P102: 0 | Q102: 0 | R102: 1 | S102: 0 | T102: 10 | U102: 0 | V102: 0 | W102: 0 | X102: 0 | Y102: 0 | Z102: 2^0^0 | AD102: =G102*100 -> 0
A103: 61019 | B103: 推雪球 | C103: 7 | D103: 61019 | E103: 1 | F103: 0 | G103: 10000 | H103: 12 | I103: 400 | J103: 0 | K103: 5 | L103: 1 | M103: 0.5 | N103: 0.5 | O103: 300 | P103: 200 | Q103: 0 | R103: 1 | S103: 0 | T103: 50 | U103: 0 | V103: 0 | W103: 0 | X103: 61019 | Y103: 0 | Z103: 2^0^0 | AD103: 1000000
A104: 61020 | B104: 黑暗法师弹射子弹 | C104: 12 | D104: 0 | E104: 1 | F104: 2 | G104: 0 | H104: 8 | I104: 60008^6^1 | J104: 10 | K104: 0 | L104: 0 | M104: 0 | N104: 0 | O104: 0 | P104: 0 | Q104: 0 | R104: 1 | S104: 1 | T104: 800 | U104: 0 | V104: 0 | W104: 0 | X104: 0 | Y104: 0 | Z104: 2^0^0 | AD104: 0
A105: 61021 | B105: 野蛮战士范围伤害 | C105: 1 | D105: 0 | E105: 1 | F105: 0 | G105: 15000 | H105: 0 | I105: 0 | J105: 0 | K105: 1 | L105: 0 | M105: 0 | N105: 1 | O105: 250 | P105: 250 | Q105: 0 | R105: 1 | S105: 9999 | T105: 50 | U105: 0 | V105: 0 | W105: 0 | X105: 0 | Y105: 0 | Z105: 2^0^0 | AD105: 1500000

Sheet Sheet2

Sheet Sheet3
